fUST/lending_fUST_20250118
["ID","MTS","AMOUNT","RATE_DAILY","PERIOD"]
[349432037,1737177041237,-500.0,0.0002315,3]
[349432038,1737177041247,-4035.25,0.0002315,3]
[349432039,1737177041256,-1436.15,0.0002315,3]
[349432040,1737177041265,-500.0,0.0002315,3]
[349432041,1737177041275,-1989.67,0.0002315,3]
[349432042,1737177041284,-500.0,0.0002315,3]
[349432043,1737177041293,-500.0,0.0002315,3]
[349432044,1737177041303,-500.0,0.0002315,3]
[349432045,1737177041312,-500.0,0.0002315,3]
[349432046,1737177041321,-529.28,0.0002315,3]
[349432047,1737177041330,-957.61,0.0002315,3]
[349432048,1737177041341,-1617.64,0.0002315,3]
[349432049,1737177041351,-531.83,0.0002315,3]
[349432050,1737177041360,-945.0,0.00023207,4]
[349432051,1737177041370,-9476.84,0.00023277,3]
[349432052,1737177041379,-19807.16,0.00023277,3]
[349432053,1737177041388,-9024.63430277,0.00023277,3]
[349432093,1737177043135,-395.0,0.00022431,2]
[349432096,1737177043145,-878.94569723,0.00023277,3]
[349432098,1737177043154,-4951.8,0.00023277,3]
[349432100,1737177043163,-474.92839384,0.00023277,3]
[349432102,1737177043174,-837.8000008,0.00023277,3]
[349432104,1737177043188,-606.16924163,0.00023277,3]
[349432112,1737177043246,-557.00236373,0.00023277,3]
[349432114,1737177043255,-2063.24,0.00023277,3]
[349432116,1737177043264,-500.0,0.00023287,3]
[349432118,1737177043274,-4035.25,0.00023287,3]
[349432120,1737177043283,-1436.15,0.00023287,3]
[349432122,1737177043292,-500.0,0.00023287,3]
[349432124,1737177043305,-1758.5161342,0.00023287,3]
[349432326,1737177046040,-231.1538658,0.00023287,3]
[349432327,1737177046050,-500.0,0.00023287,3]
[349432328,1737177046061,-500.0,0.00023287,3]
[349432329,1737177046071,-500.0,0.00023287,3]
[349432330,1737177046080,-500.0,0.00023287,3]
[349432331,1737177046090,-529.28,0.00023287,3]
[349432332,1737177046100,-957.61,0.00023287,3]
[349432333,1737177046109,-1617.64,0.00023287,3]
[349432334,1737177046118,-531.83,0.00023287,3]
[349432335,1737177046130,-7438.69753278,0.00023359,2]
[349432336,1737177046141,-500.0,0.00023424,3]
[349432337,1737177046152,-4035.25,0.00023424,3]
[349432338,1737177046162,-1436.15,0.00023424,3]
[349432339,1737177046171,-500.0,0.00023424,3]
[349432340,1737177046181,-1989.67,0.00023424,3]
[349432341,1737177046190,-500.0,0.00023424,3]
[349432342,1737177046200,-500.0,0.00023424,3]
[349432343,1737177046209,-500.0,0.00023424,3]
[349432344,1737177046218,-500.0,0.00023424,3]
[349432345,1737177046227,-529.28,0.00023424,3]
[349432346,1737177046237,-957.61,0.00023424,3]
[349432347,1737177046246,-1617.64,0.00023424,3]
[349432348,1737177046257,-531.83,0.00023424,3]
[349432349,1737177046266,-3424.58392918,0.00023449,59]
[349432350,1737177046275,-424.8307743,0.00023542,2]
[349432351,1737177046284,-500.0,0.00023561,3]
[349432352,1737177046293,-4035.25,0.00023561,3]
[349432353,1737177046302,-1436.15,0.00023561,3]
[349432354,1737177046311,-500.0,0.00023561,3]
[349432355,1737177046320,-1989.67,0.00023561,3]
[349432356,1737177046329,-500.0,0.00023561,3]
[349432357,1737177046338,-500.0,0.00023561,3]
[349432358,1737177046348,-500.0,0.00023561,3]
[349432359,1737177046358,-500.0,0.00023561,3]
[349432360,1737177046367,-529.28,0.00023561,3]
[349432361,1737177046377,-957.61,0.00023561,3]
[349432362,1737177046386,-1617.64,0.00023561,3]
[349432363,1737177046395,-531.83,0.00023561,3]
[349432364,1737177046404,-152.5,0.000236,31]
[349432365,1737177046413,-152.5,0.000236,31]
[349432366,1737177046422,-152.5,0.000236,31]
[349432367,1737177046432,-152.5,0.000236,31]
[349432368,1737177046441,-152.5,0.000236,31]
[349432369,1737177046450,-152.5,0.000236,31]
[349432370,1737177046459,-152.5,0.000236,31]
[349432371,1737177046469,-500.0,0.00023698,3]
[349432372,1737177046478,-4035.25,0.00023698,3]
[349432373,1737177046487,-1436.15,0.00023698,3]
[349432374,1737177046496,-500.0,0.00023698,3]
[349432375,1737177046506,-1989.67,0.00023698,3]
[349432376,1737177046516,-500.0,0.00023698,3]
[349432377,1737177046525,-500.0,0.00023698,3]
[349432378,1737177046535,-500.0,0.00023698,3]
[349432379,1737177046544,-500.0,0.00023698,3]
[349432380,1737177046555,-529.28,0.00023698,3]
[349432381,1737177046567,-957.61,0.00023698,3]
[349432382,1737177046577,-1617.64,0.00023698,3]
[349432383,1737177046587,-531.83,0.00023698,3]
[349432384,1737177046596,-175.17562904,0.00023715,2]
[349432385,1737177046605,-294.30831965,0.00023779,2]
[349432386,1737177046615,-500.0,0.00023814,2]
[349432387,1737177046624,-325.00269109,0.00023814,2]
[349432388,1737177046634,-151.0,0.00023815,7]
[349432389,1737177046643,-151.0,0.00023815,7]
[349432390,1737177046653,-151.0,0.00023815,7]
[349432391,1737177046662,-3917.03606804,0.00023815,5]
[349432392,1737177046671,-338.75027601,0.00023815,5]
[349432393,1737177046680,-66583.35336753,0.00023815,61]
[349432394,1737177046693,-314.8547989,0.00023815,61]
[349432395,1737177248731,163.237541,0.00013973,2]
[349432412,1737178122886,1919.76861537,0.00019,3]
[349432414,1737178154859,163.237541,0.00013973,2]
[349432549,1737178236451,-406.271099,0.00020951,2]
[349432550,1737178236461,-1021.86804867,0.00021,8]
[349432551,1737178236477,-367.78454567,0.00021,8]
[349432552,1737178236488,-958.0452512,0.00021,8]
[349432553,1737178236497,-300.0,0.00021019,2]
[349432554,1737178236506,-1879.9547488,0.0002102,2]
[349432555,1737178236522,-23020.0452512,0.0002102,2]
[349432556,1737178236532,-176.39408501,0.00021817,2]
[349432557,1737178236541,-6956.56256338,0.000219,3]
[349432573,1737178238225,-2949.61662288,0.000219,3]
[349432574,1737178238236,-159.11,0.00021917,2]
[349432576,1737178238247,-500.0,0.00021917,3]
[349432578,1737178238256,-500.0,0.00021917,2]
[349432580,1737178238266,-502.08791686,0.00021917,2]
[349432581,1737178238276,-500.0,0.00021917,2]
[349432582,1737178238285,-500.0,0.00021917,3]
[349432583,1737178238295,-500.0,0.00021917,3]
[349432584,1737178238305,-500.0,0.00021917,3]
[349432585,1737178238315,-500.0,0.00021917,3]
[349432586,1737178238324,-477.66547737,0.00021917,3]
[349432587,1737178238333,-500.0,0.00021917,3]
[349432588,1737178238343,-500.0,0.00021917,3]
[349432589,1737178238352,-500.0,0.00021917,3]
[349432590,1737178238361,-500.0,0.00021917,3]
[349432591,1737178238371,-500.0,0.00021917,3]
[349432592,1737178238380,-500.0,0.00021917,3]
[349432593,1737178238390,-500.0,0.00021917,3]
[349432594,1737178238399,-500.0,0.00021917,3]
[349432595,1737178238409,-500.0,0.00021917,3]
[349432596,1737178238418,-500.0,0.00021917,3]
[349432597,1737178238428,-500.0,0.00021917,3]
[349432598,1737178238437,-500.0,0.00021917,3]
[349432599,1737178238447,-500.0,0.00021917,3]
[349432600,1737178238457,-500.0,0.00021917,3]
[349432601,1737178238467,-500.0,0.00021917,2]
[349432602,1737178238476,-224.40023881,0.00021917,3]
[349432603,1737178238486,-500.0,0.00021917,3]
[349432604,1737178238496,-500.0,0.00021917,3]
[349432605,1737178238505,-500.0,0.00021917,3]
[349432606,1737178238514,-500.0,0.00021917,3]
[349432607,1737178238523,-598.87,0.00021917,3]
[349432608,1737178238533,-500.0,0.00021917,3]
[349432609,1737178238542,-500.0,0.00021917,3]
[349432610,1737178238553,-500.0,0.00021917,3]
[349432611,1737178238562,-383.16669177,0.00021917,3]
[349432612,1737178238574,-116.83330823,0.00021917,3]
[349432613,1737178238583,-500.0,0.00021917,3]
[349432614,1737178238593,-41.03874108,0.00021917,3]
[349432615,1737178238604,-458.96125892,0.00021917,3]
[349432616,1737178238614,-647.02,0.00021917,3]
[349432617,1737178238623,-500.0,0.00021917,3]
[349432618,1737178238632,-69.27648153,0.00021917,3]
[349432626,1737178240562,-430.72351847,0.00021917,3]
[349432627,1737178240572,-37.65748053,0.00021917,3]
[349432628,1737178240585,-381.99,0.00021917,3]
[349432629,1737178240596,-88.97251947,0.00021917,3]
[349432630,1737178240605,-500.0,0.00021917,3]
[349432631,1737178240615,-500.0,0.00021917,3]
[349432632,1737178240625,-500.0,0.00021917,3]
[349432633,1737178240635,-500.0,0.00021917,3]
[349432634,1737178240644,-500.0,0.00021917,3]
[349432635,1737178240654,-500.0,0.00021917,3]
[349432636,1737178240663,-500.0,0.00021917,3]
[349432637,1737178240673,-500.0,0.00021917,3]
[349432638,1737178240683,-640.86,0.00021917,3]
[349432639,1737178240694,-500.0,0.00021917,3]
[349432640,1737178240704,-500.0,0.00021917,3]
[349432641,1737178240714,-549.25,0.00021917,3]
[349432642,1737178240723,-500.38,0.00021917,3]
[349432643,1737178240732,-500.0,0.00021917,3]
[349432644,1737178240741,-500.0,0.00021917,3]
[349432645,1737178240749,-500.0,0.00021917,3]
[349432646,1737178240759,-500.0,0.00021917,3]
[349432647,1737178240767,-500.0,0.00021917,3]
[349432648,1737178240777,-507.72279973,0.00021917,3]
[349432649,1737178240786,-500.0,0.00021917,3]
[349432650,1737178240796,-500.0,0.00021917,3]
[349432651,1737178240808,-620.77,0.00021917,3]
[349432652,1737178240817,-500.0,0.00021917,3]
[349432653,1737178240827,-500.0,0.00021917,3]
[349432654,1737178240835,-420.17864886,0.00021917,3]
[349432655,1737178240844,-500.0,0.00021917,3]
[349432656,1737178240854,-500.0,0.00021917,3]
[349432657,1737178240863,-500.0,0.00021917,3]
[349432658,1737178240872,-500.0,0.00021917,3]
[349432659,1737178240882,-1681.35,0.00021917,3]
[349432660,1737178240892,-500.0,0.00021917,3]
[349432661,1737178240901,-500.0,0.00021917,3]
[349432662,1737178240910,-500.0,0.00021917,3]
[349432663,1737178240920,-500.0,0.00021917,3]
[349432664,1737178240930,-500.0,0.00021917,3]
[349432665,1737178240939,-500.0,0.00021917,3]
[349432666,1737178240949,-598.4,0.00021917,3]
[349432667,1737178240959,-829.03,0.00021917,3]
[349432668,1737178240968,-500.0,0.00021917,3]
[349432669,1737178240978,-500.0,0.00021917,3]
[349432670,1737178240987,-500.0,0.00021917,3]
[349432671,1737178240997,-500.0,0.00021917,3]
[349432672,1737178241007,-500.0,0.00021917,3]
[349432673,1737178241017,-501.24584189,0.00021917,2]
[349432674,1737178241027,-542.59,0.00021917,3]
[349432675,1737178241037,-500.0,0.00021917,3]
[349432676,1737178241047,-500.0,0.00021917,3]
[349432677,1737178241057,-500.0,0.00021917,3]
[349432678,1737178241066,-500.0,0.00021917,3]
[349432679,1737178241075,-500.0,0.00021917,3]
[349432680,1737178241085,-674.01,0.00021917,3]
[349432681,1737178241096,-500.0,0.00021917,3]
[349432682,1737178241106,-500.0,0.00021917,3]
[349432683,1737178241116,-500.0,0.00021917,3]
[349432684,1737178241126,-500.0,0.00021917,3]
[349432685,1737178241136,-519.68,0.00021917,3]
[349432686,1737178241145,-500.0,0.00021917,3]
[349432687,1737178241155,-492.87843123,0.00021917,3]
[349432688,1737178241164,-500.0,0.00021917,3]
[349432689,1737178241174,-619.0,0.00022044,3]
[349432690,1737178241183,-154.7,0.00022054,3]
[349432691,1737178241193,-420.99,0.00022054,3]
[349432692,1737178241203,-500.0,0.00022054,3]
[349432693,1737178241216,-500.0,0.00022054,3]
[349432694,1737178241226,-384.64,0.00022054,3]
[349432695,1737178241236,-612.77,0.00022054,3]
[349432696,1737178241245,-171.57,0.00022054,3]
[349432697,1737178241255,-220.81,0.00022054,3]
[349432698,1737178241264,-500.0,0.00022054,3]
[349432699,1737178241273,-301.05,0.00022054,3]
[349432700,1737178241284,-500.0,0.00022054,3]
[349432701,1737178241293,-1681.35,0.00022054,3]
[349432702,1737178241302,-514.51810832,0.00022054,3]
[349432703,1737178241314,-227.09104274,0.00022054,3]
[349432704,1737178241323,-598.4,0.00022054,3]
[349432705,1737178241332,-829.03,0.00022054,3]
[349432706,1737178241342,-500.0,0.00022054,3]
[349432707,1737178241351,-587.77923653,0.00022054,3]
[349432708,1737178241360,-500.0,0.00022054,3]
[349432709,1737178241370,-500.0,0.00022054,3]
[349432710,1737178241380,-674.01,0.00022054,3]
[349432711,1737178241389,-500.0,0.00022054,3]
[349432712,1737178241399,-500.0,0.00022054,3]
[349432713,1737178241409,-500.0,0.00022054,3]
[349432714,1737178241418,-202.01,0.00022191,3]
[349432715,1737178241428,-340.97,0.00022191,3]
[349432716,1737178241437,-190.19,0.00022191,3]
[349432717,1737178241446,-500.0,0.00022191,3]
[349432718,1737178241456,-1681.35,0.00022191,3]
[349432719,1737178241465,-598.4,0.00022191,3]
[349432720,1737178241475,-829.03,0.00022191,3]
[349432721,1737178241484,-195.7453522,0.00022191,3]
[349432722,1737178241494,-500.0,0.00022191,3]
[349432723,1737178241503,-500.0,0.00022191,3]
[349432724,1737178241512,-674.01,0.00022191,3]
[349432725,1737178241522,-500.0,0.00022191,3]
[349432726,1737178241532,-500.0,0.00022191,3]
[349432727,1737178241542,-500.0,0.00022191,3]
[349432728,1737178241551,-320.97,0.000223,2]
[349432729,1737178241565,-499.0,0.00022317,2]
[349432730,1737178241575,-500.0,0.00022328,3]
[349432731,1737178241584,-1681.35,0.00022328,3]
[349432732,1737178241594,-598.4,0.00022328,3]
[349432733,1737178241604,-829.03,0.00022328,3]
[349432734,1737178241614,-500.0,0.00022328,3]
[349432735,1737178241623,-298.5941678,0.00022328,3]
[349432736,1737178241633,-674.01,0.00022328,3]
[349432737,1737178241643,-500.0,0.00022328,3]
[349432738,1737178241652,-500.0,0.00022328,3]
[349432739,1737178241662,-500.0,0.00022328,3]
[349432740,1737178241683,-499.9999991,0.00022399,2]
[349432741,1737178241695,-500.0,0.00022465,3]
[349432742,1737178241705,-1681.35,0.00022465,3]
[349432743,1737178241715,-598.4,0.00022465,3]
[349432744,1737178241725,-829.03,0.00022465,3]
[349432745,1737178241734,-500.0,0.00022465,3]
[349432746,1737178241744,-674.01,0.00022465,3]
[349432747,1737178241754,-500.0,0.00022465,3]
[349432748,1737178241764,-500.0,0.00022465,3]
[349432749,1737178241774,-633.92402606,0.00022465,3]
[349432750,1737178241785,-2309.0,0.00022593,2]
[349432751,1737178241795,-2067.0,0.00022593,2]
[349432752,1737178241808,-500.0,0.00022602,3]
[349432753,1737178241818,-1681.35,0.00022602,3]
[349432754,1737178241829,-598.4,0.00022602,3]
[349432755,1737178241839,-829.03,0.00022602,3]
[349432756,1737178241850,-500.0,0.00022602,3]
[349432757,1737178241860,-674.01,0.00022602,3]
[349432758,1737178241870,-500.0,0.00022602,3]
[349432759,1737178241880,-500.0,0.00022602,3]
[349432760,1737178241890,-497.802,0.0002263,2]
[349432761,1737178241899,-500.0,0.00022739,3]
[349432762,1737178241909,-1681.35,0.00022739,3]
[349432763,1737178241919,-598.4,0.00022739,3]
[349432764,1737178241929,-829.03,0.00022739,3]
[349432765,1737178241940,-529.8108171,0.00022739,3]
[349432766,1737178241950,-674.01,0.00022739,3]
[349432767,1737178241959,-500.0,0.00022739,3]
[349432768,1737178241969,-500.0,0.00022739,3]
[349432769,1737178241979,-420.0,0.00022863,2]
[349432770,1737178241988,-500.0,0.00022876,3]
[349432771,1737178241997,-1681.35,0.00022876,3]
[349432772,1737178242006,-598.4,0.00022876,3]
[349432773,1737178242016,-829.03,0.00022876,3]
[349432774,1737178242026,-674.01,0.00022876,3]
[349432775,1737178242035,-500.0,0.00022876,3]
[349432776,1737178242044,-500.0,0.00022876,3]
[349432777,1737178242053,-7438.69753278,0.00023,2]
[349432778,1737178242199,-3807.51947619,0.00023,3]
[349432825,1737178243327,-536.0,0.00022593,2]
[349432826,1737178243337,-2964.4300048,0.00023,3]
[349432827,1737178243379,-666.74805179,0.00023,3]
[349432828,1737178243389,-1681.35,0.00023013,3]
[349432829,1737178243399,-598.4,0.00023013,3]
[349432830,1737178243409,-829.03,0.00023013,3]
[349432831,1737178243418,-674.01,0.00023013,3]
[349432832,1737178243428,-500.0,0.00023013,3]
[349432833,1737178243438,-500.0,0.00023013,3]
[349432834,1737178243447,-1681.35,0.0002315,3]
[349432835,1737178243457,-829.03,0.0002315,3]
[349432836,1737178243467,-598.4,0.0002315,3]
[349432837,1737178243476,-674.01,0.0002315,3]
[349432838,1737178243487,-500.0,0.0002315,3]
[349432839,1737178243496,-500.0,0.0002315,3]
[349432840,1737178243506,-1681.35,0.00023287,3]
[349432841,1737178243516,-829.03,0.00023287,3]
[349432842,1737178243525,-598.4,0.00023287,3]
[349432843,1737178243534,-674.01,0.00023287,3]
[349432844,1737178243542,-500.0,0.00023287,3]
[349432845,1737178243551,-292.94933106,0.00023287,3]
[349432846,1737178243564,-500.0,0.00023309,2]
[349432847,1737178243572,-1681.35,0.00023424,3]
[349432848,1737178243582,-829.03,0.00023424,3]
[349432849,1737178243591,-598.4,0.00023424,3]
[349432850,1737178243600,-674.01,0.00023424,3]
[349432851,1737178243609,-500.0,0.00023424,3]
[349432852,1737178243618,-2739.66714334,0.00023464,59]
[349432853,1737178243627,-1681.35,0.00023561,3]
[349432854,1737178243637,-829.03,0.00023561,3]
[349432855,1737178243646,-598.4,0.00023561,3]
[349432856,1737178243656,-674.01,0.00023561,3]
[349432857,1737178243665,-500.0,0.00023561,3]
[349432858,1737178243674,-212.4153871,0.00023575,2]
[349432859,1737178243683,-152.51,0.000236,31]
[349432860,1737178243693,-152.51,0.000236,31]
[349432862,1737178243702,-152.51,0.000236,31]
[349432864,1737178243712,-152.51,0.000236,31]
[349432866,1737178243722,-152.51,0.000236,31]
[349432868,1737178243731,-152.51,0.000236,31]
[349432869,1737178243740,-152.51,0.000236,31]
[349432871,1737178243750,-517.7196264,0.00023697,2]
[349432873,1737178243759,-17589.03266031,0.00023698,2]
[349432878,1737178243797,-507.05,0.00023698,2]
[349432925,1737178246267,-355.4,0.00021917,3]
[349432930,1737179028018,163.108445,0.00013973,2]
[349432942,1737179274099,187.35858661,0.000189,2]
[349432982,1737179432586,-433.245606,0.00020324,2]
[349432983,1737179432598,-124.4482783,0.00020433,2]
[349433017,1737179438497,-24775.5517217,0.00020433,2]
[349433019,1737179438506,-459.7920144,0.00020528,2]
[349433021,1737179438515,-1169.1709791,0.00020619,2]
[349433023,1737179438525,-209.3434674,0.00020851,2]
[349433025,1737179438534,-1605.82493848,0.00021,12]
[349433026,1737179438543,-500.0,0.00021019,7]
[349433029,1737179438552,-159.975,0.00021028,2]
[349433030,1737179438561,-300.0,0.00021028,2]
[349433032,1737179438572,-152.89844198,0.00021817,2]
[349433034,1737179438582,-158.96,0.00021917,2]
[349433037,1737179438593,-500.0,0.00021917,3]
[349433038,1737179438608,-500.0,0.00021917,3]
[349433040,1737179438619,-233.53992962,0.00021917,3]
[349433043,1737179438628,-207.97586021,0.00021917,3]
[349433044,1737179438637,-500.0,0.00021917,3]
[349433047,1737179438647,-500.0,0.00021917,3]
[349433048,1737179438657,-500.0,0.00021917,3]
[349433051,1737179438667,-602.12,0.00021917,3]
[349433053,1737179438676,-500.0,0.00021917,3]
[349433054,1737179438686,-246.93040365,0.00021917,3]
[349433056,1737179438696,-500.0,0.00021917,3]
[349433059,1737179438706,-614.77392378,0.00021917,3]
[349433060,1737179438715,-500.0,0.00021917,3]
[349433063,1737179438725,-500.0,0.00021917,3]
[349433065,1737179438734,-582.34,0.00021917,3]
[349433067,1737179438744,-500.0,0.00021917,3]
[349433069,1737179438753,-500.0,0.00021917,2]
[349433070,1737179438763,-566.49042879,0.00021917,3]
[349433072,1737179438772,-500.0,0.00021917,3]
[349433074,1737179438782,-500.0,0.00021917,3]
[349433076,1737179438792,-500.0,0.00021917,3]
[349433078,1737179438801,-500.0,0.00021917,3]
[349433081,1737179438810,-500.0,0.00021917,3]
[349433083,1737179438820,-500.0,0.00021917,3]
[349433085,1737179438829,-535.87,0.00021917,3]
[349433087,1737179438839,-500.0,0.00021917,3]
[349433089,1737179438852,-500.0,0.00021917,3]
[349433091,1737179438861,-500.0,0.00021917,3]
[349433092,1737179438870,-500.0,0.00021917,3]
[349433094,1737179438879,-434.41125741,0.00021917,3]
[349433097,1737179438889,-500.0,0.00021917,3]
[349433099,1737179438899,-500.0,0.00021917,3]
[349433100,1737179438908,-500.0,0.00021917,3]
[349433102,1737179438917,-413.56839047,0.00021917,3]
[349433105,1737179438926,-500.0,0.00021917,3]
[349433107,1737179438935,-603.46,0.00021917,3]
[349433108,1737179438944,-500.0,0.00021917,3]
[349433110,1737179438954,-500.0,0.00021917,3]
[349433112,1737179438963,-500.0,0.00021917,3]
[349433115,1737179438972,-500.0,0.00021917,3]
[349433117,1737179438982,-500.0,0.00021917,3]
[349433118,1737179438991,-500.0,0.00021917,3]
[349433120,1737179439001,-500.0,0.00021917,3]
[349433122,1737179439010,-500.0,0.00021917,3]
[349433125,1737179439020,-500.0,0.00021917,3]
[349433126,1737179439029,-500.0,0.00021917,3]
[349433128,1737179439038,-500.0,0.00021917,3]
[349433131,1737179439052,-500.0,0.00021917,3]
[349433133,1737179439062,-500.0,0.00021917,3]
[349433135,1737179439071,-500.0,0.00021917,3]
[349433136,1737179439080,-500.0,0.00021917,3]
[349433138,1737179439089,-500.0,0.00021917,3]
[349433140,1737179439104,-500.0,0.00021917,3]
[349433142,1737179439113,-511.4,0.00021917,3]
[349433144,1737179439123,-500.0,0.00021917,3]
[349433147,1737179439133,-500.0,0.00021917,3]
[349433148,1737179439142,-506.43056002,0.00021917,3]
[349433151,1737179439152,-500.0,0.00021917,3]
[349433153,1737179439162,-511.59644601,0.00021917,3]
[349433155,1737179439172,-500.0,0.00021917,3]
[349433157,1737179439182,-500.0,0.00021917,3]
[349433159,1737179439191,-500.0,0.00021917,3]
[349433161,1737179439200,-500.0,0.00021917,3]
[349433163,1737179439210,-500.0,0.00021917,3]
[349433165,1737179439219,-500.0,0.00021917,3]
[349433167,1737179439229,-500.0,0.00021917,3]
[349433168,1737179439238,-274.6043201,0.00021917,3]
[349433170,1737179439247,-500.0,0.00021917,3]
[349433173,1737179439259,-568.03,0.00021917,3]
[349433174,1737179439268,-500.0,0.00021917,3]
[349433176,1737179439277,-500.0,0.00021917,3]
[349433178,1737179439287,-500.0,0.00021917,3]
[349433180,1737179439296,-500.0,0.00021917,3]
[349433182,1737179439305,-500.0,0.00021917,3]
[349433185,1737179439315,-500.0,0.00021917,3]
[349433186,1737179439325,-500.0,0.00021917,3]
[349433189,1737179439336,-500.0,0.00021917,3]
[349433191,1737179439345,-500.0,0.00021917,3]
[349433193,1737179439358,-500.0,0.00021917,3]
[349433195,1737179439367,-500.0,0.00021917,3]
[349433196,1737179439377,-500.0,0.00021917,2]
[349433199,1737179439386,-356.64929118,0.00021917,3]
[349433201,1737179439396,-636.57,0.00021917,3]
[349433203,1737179439405,-500.0,0.00021917,3]
[349433204,1737179439414,-500.0,0.00021917,3]
[349433206,1737179439424,-500.0,0.00021917,3]
[349433209,1737179439433,-500.0,0.00021917,3]
[349433211,1737179439443,-500.0,0.00021917,3]
[349433213,1737179439452,-500.0,0.00021917,2]
[349433215,1737179439461,-500.0,0.00021917,3]
[349433217,1737179439470,-500.0,0.00021917,3]
[349433218,1737179439479,-500.0,0.00021917,3]
[349433220,1737179439488,-500.0,0.00021917,3]
[349433222,1737179439498,-500.0,0.00021917,3]
[349433224,1737179439507,-500.0,0.00021917,3]
[349433226,1737179439517,-917.95,0.00021917,3]
[349433228,1737179439526,-500.0,0.00021917,3]
[349433241,1737179439535,-500.0,0.00021917,3]
[349433243,1737179439654,-500.0,0.00021917,3]
[349433245,1737179439664,-539.32,0.00021917,3]
[349433247,1737179439673,-169.17797823,0.00021917,3]
[349433249,1737179439682,-500.0,0.00021917,3]
[349433251,1737179439691,-469.58961323,0.00021917,3]
[349433253,1737179439701,-500.0,0.00021917,3]
[349433255,1737179439711,-500.0,0.00021917,3]
[349433257,1737179439720,-500.0,0.00021917,3]
[349433259,1737179439729,-500.0,0.00021917,3]
[349433261,1737179439738,-816.27,0.00021917,3]
[349433263,1737179439747,-500.0,0.00021917,3]
[349433265,1737179439757,-533.5,0.00021917,3]
[349433267,1737179439766,-500.0,0.00021917,3]
[349433269,1737179439775,-500.0,0.00021917,3]
[349433272,1737179439785,-548.43,0.00021917,3]
[349433274,1737179439794,-760.33,0.00021917,3]
[349433276,1737179439803,-500.0,0.00021917,3]
[349433278,1737179439813,-500.0,0.00021917,3]
[349433280,1737179439822,-500.0,0.00021917,3]
[349433282,1737179439832,-500.0,0.00021917,3]
[349433284,1737179439841,-500.0,0.00021917,3]
[349433286,1737179439854,-500.0,0.00021917,3]
[349433288,1737179439863,-500.0,0.00021917,3]
[349433290,1737179439872,-500.0,0.00021917,3]
[349433292,1737179439882,-500.0,0.00021917,3]
[349433294,1737179439891,-500.0,0.00021917,3]
[349433296,1737179439900,-500.0,0.00021917,3]
[349433298,1737179439909,-500.0,0.00021917,3]
[349433299,1737179439916,-1007.63,0.00021917,3]
[349433301,1737179439924,-500.0,0.00021917,3]
[349433303,1737179439933,-500.0,0.00021917,3]
[349433305,1737179439943,-500.0,0.00021917,3]
[349433307,1737179439952,-500.0,0.00021917,3]
[349433309,1737179439961,-500.0,0.00021917,3]
[349433311,1737179439970,-500.0,0.00021917,3]
[349433313,1737179439980,-500.0,0.00021917,3]